[Event "CZE-ch Youth G10-G12-G14 2022"]
[Site "Luhacovice"]
[Date "2022.03.19"]
[Round "9.6"]
[White "Mazurkova Viktorie"]
[Black "Hujova Tess"]
[Result "1/2-1/2"]
[ECO "D00"]
[WhiteElo "1000"]
[BlackElo "1000"]
[Annotator "NA"]
[PlyCount "99"]
[EventDate "2022.03.12"]
[EventType "swiss"]
[EventCountry "CZE"]
[SourceTitle "playchess.com"]
[Source "ChessBase"]
[SourceQuality "1"]
[TimeControl "40/5400+30:1800+30"]

1. d4 {[%emt 0:00:02]} d5 {[%emt 0:00:13]} 2. Nc3 {[%emt 0:00:09]} Bf5 {[%emt 0:00:31]} 3. Bf4 {[%emt 0:00:21]} a6 {[%emt 0:00:19]} 4. f3 {[%emt 0:00:37]} Nf6 {[%emt 0:03:19]} 5. e3 {[%emt 0:02:00]} e6 {[%emt 0:01:49]} 6. a3 {[%emt 0:01:45]} Bd6 {[%emt 0:01:42]} 7. Bxd6 {[%emt 0:01:35]} Qxd6 {[%emt 0:00:24]} 8. Bd3 {[%emt 0:00:24]} Bxd3 {[%emt 0:02:01]} 9. Qxd3 {[%emt 0:00:14]} O-O {[%emt 0:01:54]} 10. O-O-O {[%emt 0:00:44]} Nc6 {[%emt 0:01:58]} 11. e4 {[%emt 0:01:22]} dxe4 {[%emt 0:00:27]} 12. fxe4 {[%emt 0:00:26]} Qf4+ {[%emt 0:01:02]} 13. Qd2 {[%emt 0:01:30]} Qxd2+ {[%emt 0:01:34]} 14. Rxd2 {[%emt 0:00:16]} Rad8 {[%emt 0:01:34]} 15. d5 {[%emt 0:02:02]} exd5 {[%emt 0:00:23]} 16. exd5 {[%emt 0:00:14]} Ne7 {[%emt 0:00:53]} 17. Nge2 {[%emt 0:02:27]} Nexd5 {[%emt 0:00:46]} 18. Nxd5 {[%emt 0:00:45]} Rxd5 {[%emt 0:00:27]} 19. Rhd1 {[%emt 0:00:38]} Rxd2 {[%emt 0:00:38]} 20. Rxd2 {[%emt 0:00:07]} h6 {[%emt 0:00:41]} 21. h3 {[%emt 0:00:43]} Re8 {[%emt 0:00:44]} 22. g3 {[%emt 0:04:09]} Re3 {[%emt 0:01:11]} 23. c3 {[%emt 0:01:16]} Ne4 {[%emt 0:02:07]} 24. Rd8+ {[%emt 0:01:46]} Kh7 {[%emt 0:00:19]} 25. Kd1 {[%emt 0:00:48]} Nxg3 {[%emt 0:00:30]} 26. Nc1 {[%emt 0:00:50]} Nf5 {[%emt 0:01:36]} 27. Rd7 {[%emt 0:02:08]} Re7 {[%emt 0:01:25]} 28. Rd8 {[%emt 0:01:58]} g5 {[%emt 0:00:27]} 29. Rb8 {[%emt 0:01:50]} b6 {[%emt 0:00:10]} 30. b4 {[%emt 0:01:07]} Nd6 {[%emt 0:00:47]} 31. a4 {[%emt 0:00:55]} Nc4 {[%emt 0:00:57]} 32. Ra8 {[%emt 0:01:38]} a5 {[%emt 0:00:16]} 33. bxa5 {[%emt 0:00:20]} bxa5 {[%emt 0:00:41]} 34. Kc2 {[%emt 0:00:32]} f5 {[%emt 0:01:21]} 35. Kb3 {[%emt 0:00:25]} Re4 {[%emt 0:00:32]} 36. Rc8 {[%emt 0:00:29]} Nb6 {[%emt 0:02:05]} 37. Rxc7+ {[%emt 0:01:00]} Kg8 {[%emt 0:00:14]} 38. Rc5 {[%emt 0:01:40]} Nxa4 {[%emt 0:00:50]} 39. Rxa5 {[%emt 0:00:25]} Nb6 {[%emt 0:00:35]} 40. Rxf5 {[%emt 0:00:34]} Kg7 {[%emt 0:01:26]} 41. Rb5 {[%emt 0:30:39]} Nc4 {[%emt 0:30:39]} 42. Rb4 {[%emt 0:00:42]} Nd2+ {[%emt 0:00:55]} 43. Ka3 {[%emt 0:00:17]} Rxb4 {[%emt 0:00:31]} 44. Kxb4 {[%emt 0:00:12]} h5 {[%emt 0:00:37]} 45. c4 {[%emt 0:00:28]} Ne4 {[%emt 0:00:27]} 46. c5 {[%emt 0:00:25]} g4 {[%emt 0:00:52]} 47. hxg4 {[%emt 0:00:15]} hxg4 {[%emt 0:00:13]} 48. Ne2 {[%emt 0:00:23]} Nxc5 {[%emt 0:00:50]} 49. Kxc5 {[%emt 0:00:18]} g3 {[%emt 0:00:10]} 50. Nxg3 {[%emt 0:00:10]} 1/2-1/2

[Event "CZE-ch Youth G10-G12-G14 2022"]
[Site "Luhacovice"]
[Date "2022.03.19"]
[Round "9.7"]
[White "Koutna Simona"]
[Black "Tarielasvili Kira"]
[Result "1-0"]
[ECO "C54"]
[WhiteElo "1000"]
[BlackElo "1000"]
[Annotator "NA"]
[PlyCount "61"]
[EventDate "2022.03.12"]
[EventType "swiss"]
[EventCountry "CZE"]
[SourceTitle "playchess.com"]
[Source "ChessBase"]
[SourceQuality "1"]
[TimeControl "40/5400+30:1800+30"]

1. e4 {[%emt 0:00:05]} e5 {[%emt 0:00:14]} 2. Nf3 {[%emt 0:00:06]} Nc6 {[%emt 0:00:48]} 3. d4 {[%emt 0:00:20]} Bb4+ {[%emt 0:01:56]} 4. c3 {[%emt 0:00:30]} Bd6 {[%emt 0:00:30]} 5. Bc4 {[%emt 0:00:21]} Nf6 {[%emt 0:03:25]} 6. Bg5 {[%emt 0:00:31]} h6 {[%emt 0:00:30]} 7. Bxf6 {[%emt 0:00:30]} Qxf6 {[%emt 0:00:30]} 8. O-O {[%emt 0:00:13]} Be7 {[%emt 0:04:35]} 9. Re1 {[%emt 0:00:30]} d6 {[%emt 0:00:30]} 10. Nbd2 {[%emt 0:02:59]} Bg4 {[%emt 0:06:30]} 11. h3 {[%emt 0:00:04]} Be6 {[%emt 0:04:37]} 12. d5 {[%emt 0:00:30]} Bd7 {[%emt 0:00:30]} 13. dxc6 {[%emt 0:00:41]} Bxc6 {[%emt 0:06:17]} 14. b4 {[%emt 0:00:30]} b5 {[%emt 0:00:30]} 15. Bd5 {[%emt 0:00:30]} Bxd5 {[%emt 0:00:30]} 16. exd5 {[%emt 0:00:08]} c5 {[%emt 0:11:06]} 17. Ne4 {[%emt 0:00:31]} Qf5 {[%emt 0:05:06]} 18. bxc5 {[%emt 0:00:37]} dxc5 {[%emt 0:11:14]} 19. Nxc5 {[%emt 0:00:30]} Bxc5 {[%emt 0:00:30]} 20. Rxe5+ {[%emt 0:00:30]} Qxe5 {[%emt 0:00:30]} 21. Nxe5 {[%emt 0:00:30]} O-O {[%emt 0:00:30]} 22. Nd7 {[%emt 0:00:30]} Rfc8 {[%emt 0:00:30]} 23. Nxc5 {[%emt 0:00:30]} Rxc5 {[%emt 0:00:30]} 24. d6 {[%emt 0:00:30]} Kf8 {[%emt 0:00:30]} 25. Rc1 {[%emt 0:00:30]} Rac8 {[%emt 0:00:30]} 26. d7 {[%emt 0:00:30]} Rd8 {[%emt 0:00:30]} 27. Rc2 {[%emt 0:00:30]} Ke7 {[%emt 0:00:30]} 28. Re2+ {[%emt 0:00:30]} Kf6 {[%emt 0:00:30]} 29. Re8 {[%emt 0:00:30]} Rxe8 {[%emt 0:00:30]} 30. dxe8=Q {[%emt 0:00:30]} Rxc3 {[%emt 0:00:30]} 31. Qd4+ {[%emt 0:00:32]} 1-0

[Event "CZE-ch Youth G10-G12-G14 2022"]
[Site "Luhacovice"]
[Date "2022.03.19"]
[Round "9.8"]
[White "Topencikova Ellen"]
[Black "Zadrapova Gabriela"]
[Result "0-1"]
[ECO "C34"]
[WhiteElo "1000"]
[BlackElo "1000"]
[Annotator "NA"]
[PlyCount "78"]
[EventDate "2022.03.12"]
[EventType "swiss"]
[EventCountry "CZE"]
[SourceTitle "playchess.com"]
[Source "ChessBase"]
[SourceQuality "1"]
[TimeControl "40/5400+30:1800+30"]

1. e4 {[%emt 0:00:04]} e5 {[%emt 0:00:15]} 2. f4 {[%emt 0:00:09]} exf4 {[%emt 0:00:17]} 3. Nf3 {[%emt 0:00:12]} d6 {[%emt 0:00:33]} 4. Bc4 {[%emt 0:00:28]} g5 {[%emt 0:00:51]} 5. d4 {[%emt 0:00:21]} h6 {[%emt 0:00:49]} 6. Nc3 {[%emt 0:00:13]} Ne7 {[%emt 0:00:47]} 7. O-O {[%emt 0:00:34]} Bg7 {[%emt 0:00:44]} 8. e5 {[%emt 0:01:02]} O-O {[%emt 0:01:39]} 9. exd6 {[%emt 0:00:29]} Qxd6 {[%emt 0:01:25]} 10. Nb5 {[%emt 0:00:48]} Qc6 {[%emt 0:02:52]} 11. d5 {[%emt 0:00:46]} Qxc4 {[%emt 0:01:44]} 12. Na3 {[%emt 0:00:56]} Qc5+ {[%emt 0:01:20]} 13. Kh1 {[%emt 0:00:36]} Nxd5 {[%emt 0:01:35]} 14. b3 {[%emt 0:00:40]} Ne3 {[%emt 0:02:07]} 15. Bxe3 {[%emt 0:00:31]} Qxe3 {[%emt 0:01:52]} 16. Re1 {[%emt 0:00:32]} Qc5 {[%emt 0:01:55]} 17. Qc1 {[%emt 0:01:17]} Bc3 {[%emt 0:02:32]} 18. Rb1 {[%emt 0:00:29]} Bxe1 {[%emt 0:00:28]} 19. Nxe1 {[%emt 0:00:28]} Bd7 {[%emt 0:00:51]} 20. b4 {[%emt 0:00:28]} Qd5 {[%emt 0:01:00]} 21. Nf3 {[%emt 0:00:23]} g4 {[%emt 0:00:56]} 22. c4 {[%emt 0:00:21]} Qe4 {[%emt 0:00:53]} 23. Nb5 {[%emt 0:00:54]} Na6 {[%emt 0:00:57]} 24. Nxc7 {[%emt 0:00:29]} Nxc7 {[%emt 0:00:23]} 25. Nd2 {[%emt 0:00:13]} Qe2 {[%emt 0:01:30]} 26. Nb3 {[%emt 0:00:44]} Bc6 {[%emt 0:00:29]} 27. Qg1 {[%emt 0:00:29]} Rfe8 {[%emt 0:00:59]} 28. a3 {[%emt 0:01:14]} Qa2 {[%emt 0:00:47]} 29. h3 {[%emt 0:02:00]} Re4 {[%emt 0:00:26]} 30. hxg4 {[%emt 0:01:26]} Rae8 {[%emt 0:00:34]} 31. Nc5 {[%emt 0:02:03]} Re2 {[%emt 0:00:35]} 32. Nd3 {[%emt 0:01:01]} Rxg2 {[%emt 0:00:29]} 33. Qc1 {[%emt 0:00:44]} Rc2+ {[%emt 0:00:39]} 34. Kg1 {[%emt 0:01:01]} Rxc1+ {[%emt 0:00:14]} 35. Rxc1 {[%emt 0:00:18]} Qxa3 {[%emt 0:00:22]} 36. b5 {[%emt 0:00:51]} Qxd3 {[%emt 0:01:23]} 37. bxc6 {[%emt 0:00:12]} bxc6 {[%emt 0:00:28]} 38. Kf2 {[%emt 0:00:38]} Qd2+ {[%emt 0:01:10]} 39. Kf1 {[%emt 0:00:19]} Qxc1+ {[%emt 0:00:29]} 0-1

[Event "CZE-ch Youth G10-G12-G14 2022"]
[Site "Luhacovice"]
[Date "2022.03.19"]
[Round "9.9"]
[White "Ramseier, Jana S."]
[Black "Martikanova Amalie"]
[Result "0-1"]
[ECO "C27"]
[WhiteElo "2090"]
[BlackElo "1245"]
[Annotator "ChessBase"]
[PlyCount "32"]
[EventDate "2022.03.12"]
[EventType "swiss"]
[EventCountry "CZE"]
[SourceTitle "playchess.com"]
[Source "ChessBase"]
[SourceQuality "1"]
[TimeControl "40/5400+30:1800+30"]

1. e4 {[%emt 0:00:08]} e5 {[%emt 0:00:10]} 2. Bc4 {[%emt 0:00:18]} Nf6 {[%emt 0:00:46]} 3. d3 {[%emt 0:00:22]} Bc5 {[%emt 0:00:34]} 4. Be3 {[%emt 0:01:35]} Bb6 {[%emt 0:01:04]} 5. Nc3 {[%emt 0:00:24]} d6 {[%emt 0:01:03]} 6. Qe2 {[%emt 0:00:31]} Be6 {[%emt 0:01:04]} 7. O-O-O {[%emt 0:00:26]} O-O {[%emt 0:01:07]} 8. Nf3 {[%emt 0:00:54]} Nc6 {[%emt 0:01:02]} 9. Bxb6 {[%emt 0:01:16]} axb6 {[%emt 0:00:27]} 10. Bxe6 {[%emt 0:00:55]} fxe6 {[%emt 0:00:21]} 11. Ng5 {[%emt 0:00:52]} Qe7 {[%emt 0:04:14]} 12. Rhe1 {[%emt 0:00:42]} Nd4 {[%emt 0:01:41]} 13. Qe3 {[%emt 0:01:21]} Ng4 {[%emt 0:01:37]} 14. Qh3 {[%emt 0:01:11]} Qxg5+ {[%emt 0:00:20]} 15. Rd2 {[%emt 0:04:27]} Qxd2+ {[%emt 0:01:24]} 16. Kb1 {[%emt 0:04:59]} Qxe1+ {[%emt 0:00:30]} 0-1

[Event "CZE-ch Youth G10-G12-G14 2022"]
[Site "Luhacovice"]
[Date "2022.03.19"]
[Round "9.10"]
[White "Vlckova Linda"]
[Black "Rudova Jana"]
[Result "0-1"]
[ECO "D10"]
[WhiteElo "1000"]
[BlackElo "1000"]
[Annotator "NA"]
[PlyCount "72"]
[EventDate "2022.03.12"]
[EventType "swiss"]
[EventCountry "CZE"]
[SourceTitle "playchess.com"]
[Source "ChessBase"]
[SourceQuality "1"]
[TimeControl "40/5400+30:1800+30"]

1. d4 {[%emt 0:00:04]} d5 {[%emt 0:00:14]} 2. c4 {[%emt 0:00:11]} c6 {[%emt 0:00:25]} 3. e3 {[%emt 0:00:11]} Nf6 {[%emt 0:00:23]} 4. Nc3 {[%emt 0:00:40]} Bf5 {[%emt 0:01:31]} 5. Bd3 {[%emt 0:00:20]} Bxd3 {[%emt 0:00:54]} 6. Qxd3 {[%emt 0:00:19]} e6 {[%emt 0:01:05]} 7. c5 {[%emt 0:00:10]} Nbd7 {[%emt 0:00:30]} 8. Nf3 {[%emt 0:00:21]} Qe7 {[%emt 0:01:34]} 9. O-O {[%emt 0:00:13]} e5 {[%emt 0:02:30]} 10. dxe5 {[%emt 0:00:19]} Nxe5 {[%emt 0:00:30]} 11. Nxe5 {[%emt 0:00:30]} Qxe5 {[%emt 0:00:30]} 12. f4 {[%emt 0:00:30]} Qc7 {[%emt 0:00:30]} 13. e4 {[%emt 0:00:32]} Bxc5+ {[%emt 0:00:30]} 14. Be3 {[%emt 0:00:00]} Bxe3+ {[%emt 0:03:56]} 15. Qxe3 {[%emt 0:01:11]} O-O {[%emt 0:00:30]} 16. e5 {[%emt 0:00:30]} Ng4 {[%emt 0:00:30]} 17. Qh3 {[%emt 0:00:30]} Qb6+ {[%emt 0:00:30]} 18. Kh1 {[%emt 0:00:30]} Nf2+ {[%emt 0:01:01]} 19. Kg1 {[%emt 0:00:51]} Nxh3+ {[%emt 0:00:29]} 20. Kh1 {[%emt 0:00:26]} Nf2+ {[%emt 0:00:57]} 21. Kg1 {[%emt 0:00:16]} Nd3+ {[%emt 0:01:24]} 22. Kh1 {[%emt 0:00:31]} Qxb2 {[%emt 0:00:30]} 23. Na4 {[%emt 0:00:24]} Qa3 {[%emt 0:01:00]} 24. Rf3 {[%emt 0:00:17]} Qxa4 {[%emt 0:01:39]} 25. Rxd3 {[%emt 0:00:30]} Qxf4 {[%emt 0:00:30]} 26. Rb3 {[%emt 0:00:11]} Qxe5 {[%emt 0:00:23]} 27. Rab1 {[%emt 0:00:10]} b6 {[%emt 0:00:36]} 28. Rb4 {[%emt 0:00:36]} Rfe8 {[%emt 0:00:27]} 29. g3 {[%emt 0:00:10]} Qe2 {[%emt 0:01:17]} 30. a4 {[%emt 0:01:36]} Re6 {[%emt 0:01:13]} 31. a5 {[%emt 0:00:12]} Rh6 {[%emt 0:00:33]} 32. Kg1 {[%emt 0:00:04]} Qxh2+ {[%emt 0:02:01]} 33. Kf1 {[%emt 0:00:30]} Re8 {[%emt 0:00:30]} 34. Re1 {[%emt 0:00:38]} Rf6+ {[%emt 0:00:25]} 35. Rf4 {[%emt 0:00:15]} Rxf4+ {[%emt 0:01:54]} 36. gxf4 {[%emt 0:00:00]} Qh6 {[%emt 0:00:00]} 0-1

[Event "CZE-ch Youth G10-G12-G14 2022"]
[Site "Luhacovice"]
[Date "2022.03.19"]
[Round "9.11"]
[White "Kubalova Nikol"]
[Black "Melicharova Veronika"]
[Result "0-1"]
[ECO "D02"]
[WhiteElo "1000"]
[BlackElo "1000"]
[Annotator "NA"]
[PlyCount "82"]
[EventDate "2022.03.12"]
[EventType "swiss"]
[EventCountry "CZE"]
[SourceTitle "playchess.com"]
[Source "ChessBase"]
[SourceQuality "1"]
[TimeControl "40/5400+30:1800+30"]

1. d4 {[%emt 0:00:04]} d5 {[%emt 0:00:18]} 2. Bf4 {[%emt 0:00:07]} Nf6 {[%emt 0:01:31]} 3. e3 {[%emt 0:00:19]} e6 {[%emt 0:00:39]} 4. Nf3 {[%emt 0:00:15]} Bd6 {[%emt 0:00:25]} 5. Bg3 {[%emt 0:00:35]} O-O {[%emt 0:00:40]} 6. Bd3 {[%emt 0:00:09]} Nc6 {[%emt 0:00:43]} 7. Nbd2 {[%emt 0:00:30]} Bxg3 {[%emt 0:00:30]} 8. hxg3 {[%emt 0:00:17]} h6 {[%emt 0:00:29]} 9. O-O {[%emt 0:01:04]} Nb4 {[%emt 0:00:43]} 10. e4 {[%emt 0:01:02]} dxe4 {[%emt 0:00:52]} 11. Nxe4 {[%emt 0:00:23]} Nxe4 {[%emt 0:00:25]} 12. Bxe4 {[%emt 0:00:13]} Rb8 {[%emt 0:00:15]} 13. g4 {[%emt 0:03:03]} b6 {[%emt 0:00:23]} 14. g5 {[%emt 0:00:17]} hxg5 {[%emt 0:00:25]} 15. Nxg5 {[%emt 0:00:24]} Qxg5 {[%emt 0:00:12]} 16. c3 {[%emt 0:00:32]} Nd5 {[%emt 0:00:19]} 17. Bxd5 {[%emt 0:00:32]} Qxd5 {[%emt 0:00:17]} 18. f3 {[%emt 0:00:36]} Ba6 {[%emt 0:00:26]} 19. Re1 {[%emt 0:01:37]} Rbd8 {[%emt 0:00:27]} 20. Kf2 {[%emt 0:00:56]} Qb7 {[%emt 0:00:33]} 21. Rh1 {[%emt 0:01:09]} c5 {[%emt 0:00:47]} 22. dxc5 {[%emt 0:00:31]} Rxd1 {[%emt 0:00:19]} 23. Raxd1 {[%emt 0:00:31]} bxc5 {[%emt 0:00:23]} 24. Rh2 {[%emt 0:01:00]} Qb6 {[%emt 0:00:42]} 25. Rdh1 {[%emt 0:00:22]} c4+ {[%emt 0:00:34]} 26. Kf1 {[%emt 0:01:01]} f6 {[%emt 0:00:18]} 27. g4 {[%emt 0:01:44]} Rd8 {[%emt 0:00:23]} 28. f4 {[%emt 0:00:52]} Rd1+ {[%emt 0:00:18]} 29. Kg2 {[%emt 0:01:07]} Rxh1 {[%emt 0:00:24]} 30. Rxh1 {[%emt 0:00:15]} Bb7+ {[%emt 0:00:09]} 31. Kg3 {[%emt 0:00:17]} Bxh1 {[%emt 0:00:17]} 32. Kh2 {[%emt 0:02:38]} Bc6 {[%emt 0:00:33]} 33. Kh3 {[%emt 0:00:49]} f5 {[%emt 0:01:34]} 34. gxf5 {[%emt 0:00:37]} exf5 {[%emt 0:00:14]} 35. Kh4 {[%emt 0:00:55]} Qd8+ {[%emt 0:00:25]} 36. Kg3 {[%emt 0:01:12]} Qd3+ {[%emt 0:00:33]} 37. Kh4 {[%emt 0:00:19]} Qc2 {[%emt 0:00:39]} 38. b3 {[%emt 0:00:22]} Qh2+ {[%emt 0:00:34]} 39. Kg5 {[%emt 0:00:16]} Bd7 {[%emt 0:00:06]} 40. bxc4 {[%emt 0:00:46]} Qg3+ {[%emt 0:00:27]} 41. Kh5 {[%emt 0:30:47]} Be8# {[%emt 0:30:33]} 0-1

[Event "CZE-ch Youth G10-G12-G14 2022"]
[Site "Luhacovice"]
[Date "2022.03.19"]
[Round "9.12"]
[White "Kozusnikova, Daniela"]
[Black "Stara, Zuzana"]
[Result "0-1"]
[ECO "D02"]
[WhiteElo "1364"]
[BlackElo "1322"]
[Annotator "NA"]
[PlyCount "92"]
[EventDate "2022.03.12"]
[EventType "swiss"]
[EventCountry "CZE"]
[SourceTitle "playchess.com"]
[Source "ChessBase"]
[SourceQuality "1"]
[TimeControl "40/5400+30:1800+30"]

1. d4 {[%emt 0:00:02]} d5 {[%emt 0:00:03]} 2. Bf4 {[%emt 0:00:05]} c5 {[%emt 0:00:23]} 3. e3 {[%emt 0:00:11]} e6 {[%emt 0:00:17]} 4. Nf3 {[%emt 0:00:20]} Nf6 {[%emt 0:00:51]} 5. c3 {[%emt 0:00:41]} Nc6 {[%emt 0:01:12]} 6. Bd3 {[%emt 0:00:49]} Qb6 {[%emt 0:02:46]} 7. Qc2 {[%emt 0:02:39]} Be7 {[%emt 0:02:27]} 8. Nbd2 {[%emt 0:02:25]} Bd7 {[%emt 0:00:30]} 9. O-O {[%emt 0:01:04]} Rc8 {[%emt 0:00:41]} 10. Rfe1 {[%emt 0:06:36]} O-O {[%emt 0:03:33]} 11. Rad1 {[%emt 0:05:16]} Rfe8 {[%emt 0:10:14]} 12. h3 {[%emt 0:13:08]} h6 {[%emt 0:02:39]} 13. Nf1 {[%emt 0:04:11]} Bf8 {[%emt 0:08:20]} 14. N1d2 {[%emt 0:08:44]} a6 {[%emt 0:14:28]} 15. Qb1 {[%emt 0:08:22]} Qa7 {[%emt 0:00:49]} 16. dxc5 {[%emt 0:04:57]} Bxc5 {[%emt 0:00:26]} 17. Nb3 {[%emt 0:01:02]} e5 {[%emt 0:02:11]} 18. Bh7+ {[%emt 0:14:16]} Nxh7 {[%emt 0:00:57]} 19. Bh2 {[%emt 0:07:58]} e4 {[%emt 0:01:52]} 20. Nfd4 {[%emt 0:01:39]} Nxd4 {[%emt 0:01:46]} 21. Nxd4 {[%emt 0:00:14]} Bxd4 {[%emt 0:00:08]} 22. Rxd4 {[%emt 0:00:56]} Nf6 {[%emt 0:00:21]} 23. Qc2 {[%emt 0:01:03]} Bb5 {[%emt 0:00:39]} 24. Rdd1 {[%emt 0:01:44]} Bd3 {[%emt 0:00:47]} 25. Qd2 {[%emt 0:00:41]} b5 {[%emt 0:01:36]} 26. Bf4 {[%emt 0:02:44]} b4 {[%emt 0:01:07]} 27. cxb4 {[%emt 0:00:20]} Rc2 {[%emt 0:00:13]} 28. Bd6 {[%emt 0:00:39]} Rxd2 {[%emt 0:00:26]} 29. Rxd2 {[%emt 0:00:04]} Rc8 {[%emt 0:00:39]} 30. Bc5 {[%emt 0:00:09]} Qb7 {[%emt 0:01:19]} 31. a3 {[%emt 0:00:42]} Nd7 {[%emt 0:00:41]} 32. Bd4 {[%emt 0:00:29]} f6 {[%emt 0:02:13]} 33. Bc3 {[%emt 0:00:47]} Nb6 {[%emt 0:00:36]} 34. Rdd1 {[%emt 0:00:32]} Na4 {[%emt 0:01:30]} 35. Bd4 {[%emt 0:00:23]} Rc2 {[%emt 0:01:50]} 36. b3 {[%emt 0:00:35]} Nc3 {[%emt 0:00:50]} 37. Ra1 {[%emt 0:00:37]} Ne2+ {[%emt 0:00:30]} 38. Kh1 {[%emt 0:00:35]} Nxd4 {[%emt 0:00:11]} 39. exd4 {[%emt 0:00:07]} Rxf2 {[%emt 0:00:19]} 40. Rac1 {[%emt 0:00:47]} Rc2 {[%emt 0:00:14]} 41. Rcd1 {[%emt 0:30:22]} Qc7 {[%emt 0:30:30]} 42. Ra1 {[%emt 0:01:00]} Qg3 {[%emt 0:00:14]} 43. Rg1 {[%emt 0:00:10]} e3 {[%emt 0:00:27]} 44. Rae1 {[%emt 0:00:09]} Be4 {[%emt 0:00:17]} 45. Rxe3 {[%emt 0:00:39]} Qxe3 {[%emt 0:00:29]} 46. a4 {[%emt 0:00:13]} Qxh3# {[%emt 0:00:08]} 0-1

[Event "CZE-ch Youth G10-G12-G14 2022"]
[Site "Luhacovice"]
[Date "2022.03.19"]
[Round "9.13"]
[White "Horkova, Tereza"]
[Black "Slivova, Linda"]
[Result "1-0"]
[ECO "B01"]
[WhiteElo "1375"]
[BlackElo "1298"]
[Annotator "NA"]
[PlyCount "106"]
[EventDate "2022.03.12"]
[EventType "swiss"]
[EventCountry "CZE"]
[SourceTitle "playchess.com"]
[Source "ChessBase"]
[SourceQuality "1"]
[TimeControl "40/5400+30:1800+30"]

1. e4 {[%emt 0:00:02]} d5 {[%emt 0:00:09]} 2. exd5 {[%emt 0:00:09]} Qxd5 {[%emt 0:00:07]} 3. Nc3 {[%emt 0:00:12]} Qd6 {[%emt 0:00:17]} 4. d4 {[%emt 0:00:34]} Nf6 {[%emt 0:00:11]} 5. Nf3 {[%emt 0:00:34]} c6 {[%emt 0:00:44]} 6. g3 {[%emt 0:00:57]} Bg4 {[%emt 0:01:24]} 7. Bg2 {[%emt 0:00:20]} e6 {[%emt 0:00:56]} 8. O-O {[%emt 0:00:53]} Qc7 {[%emt 0:01:19]} 9. Bf4 {[%emt 0:05:02]} Bd6 {[%emt 0:00:27]} 10. Bxd6 {[%emt 0:01:49]} Qxd6 {[%emt 0:02:14]} 11. Qd2 {[%emt 0:04:04]} Nbd7 {[%emt 0:01:13]} 12. Rad1 {[%emt 0:02:46]} O-O {[%emt 0:01:13]} 13. Rfe1 {[%emt 0:01:19]} Rfe8 {[%emt 0:02:22]} 14. h3 {[%emt 0:02:53]} Bf5 {[%emt 0:04:06]} 15. Nh4 {[%emt 0:01:09]} Bg6 {[%emt 0:01:45]} 16. Nxg6 {[%emt 0:00:19]} hxg6 {[%emt 0:00:16]} 17. a3 {[%emt 0:10:34]} Nd5 {[%emt 0:06:17]} 18. Nxd5 {[%emt 0:00:36]} cxd5 {[%emt 0:00:17]} 19. Qd3 {[%emt 0:03:27]} Qb6 {[%emt 0:02:07]} 20. b3 {[%emt 0:09:25]} Rac8 {[%emt 0:09:00]} 21. c4 {[%emt 0:01:09]} dxc4 {[%emt 0:15:03]} 22. bxc4 {[%emt 0:00:12]} Qc7 {[%emt 0:00:32]} 23. Rc1 {[%emt 0:03:37]} Red8 {[%emt 0:07:57]} 24. Qb3 {[%emt 0:14:05]} b6 {[%emt 0:06:28]} 25. f4 {[%emt 0:05:14]} Qd6 {[%emt 0:05:48]} 26. Red1 {[%emt 0:01:46]} Qe7 {[%emt 0:07:44]} 27. Qe3 {[%emt 0:04:24]} Qf8 {[%emt 0:08:37]} 28. Kh2 {[%emt 0:01:22]} Nf6 {[%emt 0:01:52]} 29. Qb3 {[%emt 0:05:19]} Rd7 {[%emt 0:02:13]} 30. Rd2 {[%emt 0:01:31]} Rdc7 {[%emt 0:00:38]} 31. a4 {[%emt 0:00:57]} Qd6 {[%emt 0:02:00]} 32. Rcc2 {[%emt 0:02:59]} Qe7 {[%emt 0:02:24]} 33. Qb5 {[%emt 0:03:53]} Qd7 {[%emt 0:00:50]} 34. Qa6 {[%emt 0:00:59]} Nd5 {[%emt 0:01:57]} 35. Bxd5 {[%emt 0:07:23]} exd5 {[%emt 0:00:15]} 36. c5 {[%emt 0:00:41]} bxc5 {[%emt 0:00:23]} 37. dxc5 {[%emt 0:00:38]} Rxc5 {[%emt 0:00:11]} 38. Rxc5 {[%emt 0:00:19]} Rxc5 {[%emt 0:00:04]} 39. h4 {[%emt 0:01:31]} Qc7 {[%emt 0:01:10]} 40. Kh3 {[%emt 0:00:17]} Qd7+ {[%emt 0:00:57]} 41. Kg2 {[%emt 0:30:13]} d4 {[%emt 0:30:11]} 42. Qd3 {[%emt 0:00:49]} Qxa4 {[%emt 0:01:37]} 43. Qxd4 {[%emt 0:00:05]} Qxd4 {[%emt 0:00:09]} 44. Rxd4 {[%emt 0:00:03]} Ra5 {[%emt 0:00:17]} 45. Rd8+ {[%emt 0:00:09]} Kh7 {[%emt 0:00:10]} 46. Kh3 {[%emt 0:00:08]} Ra3 {[%emt 0:00:48]} 47. Rd7 {[%emt 0:01:08]} f5 {[%emt 0:00:30]} 48. Rd8 {[%emt 0:00:34]} a5 {[%emt 0:00:26]} 49. Ra8 {[%emt 0:00:40]} a4 {[%emt 0:00:20]} 50. Ra7 {[%emt 0:00:42]} Ra1 {[%emt 0:00:11]} 51. Kg2 {[%emt 0:00:00]} a3 {[%emt 0:00:12]} 52. Ra8 {[%emt 0:00:04]} a2 {[%emt 0:00:36]} 53. Kh2 {[%emt 0:00:10]} Rb1 {[%emt 0:02:21]} 1-0